bitfinex/quotes_ETHUSD_20220220
["timestamp","ask_amount","ask_price","bid_price","bid_amount"]
[1645361803045,1.87701993,2630.6,2629.9,0.95123]
[1645361803241,1.16093747,2630.6,2630.0,0.3]
[1645361803443,0.00271187,2630.1,2630.0,0.3]
[1645361803643,0.00271187,2630.1,2629.9,0.95123]
[1645361803890,0.00271187,2630.1,2630.0,3.8]
[1645361804395,0.71608246,2630.9,2630.1,1.90212]
[1645361804595,0.01084581,2630.6,2630.2,3.5]
[1645361804789,0.01084581,2630.6,2630.2,0.3]
[1645361805488,1.01029803,2630.8,2630.2,0.3]
[1645361805689,0.77586135,2630.7,2630.2,0.3]
[1645361805890,0.00271176,2630.5,2630.2,0.3]
[1645361806789,0.77586135,2630.7,2630.2,0.3]
[1645361806989,0.00271178,2630.5,2630.2,0.3]
[1645361807840,0.77586135,2630.6,2630.2,0.3]
[1645361808036,0.77586135,2630.5,2630.2,0.3]
[1645361808240,0.77586135,2630.4,2630.1,1.47835619]
[1645361808537,0.00271178,2630.5,2630.1,1.47835619]
[1645361808538,0.77586135,2630.3,2630.1,1.47835619]
[1645361808739,0.77586135,2630.2,2630.1,1.47835619]
[1645361808938,0.77586135,2630.2,2630.1,0.47835619]
[1645361809139,0.77586135,2630.2,2630.0,1.90212]
[1645361809337,0.77586135,2630.1,2630.0,1.90212]
[1645361809538,0.00271183,2630.3,2630.0,1.90212]
[1645361810342,0.74349759,2630.6,2630.1,0.6]
[1645361810541,0.00271183,2630.3,2630.1,0.6]
[1645361811601,0.74349759,2630.5,2630.1,1.6]
[1645361811899,0.71608246,2630.9,2630.1,1.6]
[1645361811900,0.00271182,2630.3,2630.1,1.6]
[1645361812700,0.74349759,2630.6,2630.1,1.6]
[1645361812906,0.00271182,2630.3,2630.1,1.6]
[1645361813903,0.74313925,2630.6,2630.1,1.6]
[1645361814104,0.00271182,2630.3,2630.1,1.6]
[1645361815136,0.7430367,2630.6,2630.1,1.6]
[1645361815337,0.00271182,2630.3,2630.1,1.6]
[1645361816342,0.7430367,2630.4,2629.8,1.90239]
[1645361816544,0.7430367,2630.4,2629.2,6.3529596]
[1645361816545,0.00271182,2630.3,2629.2,0.95146]
[1645361816740,0.90879428,2630.3,2629.0,3.5657]
[1645361816941,0.90879428,2630.3,2628.8,11.24280837]
[1645361816942,0.71608246,2630.1,2628.8,11.24280837]
[1645361817139,0.90608246,2630.1,2628.8,11.24280837]
[1645361817340,0.87257149,2629.5,2628.8,11.24280837]
[1645361817541,0.87257149,2629.5,2628.7,0.91479778]
[1645361817744,0.87257149,2629.5,2628.8,0.00240837]
[1645361818143,0.76195897,2629.4,2628.8,0.00240837]
[1645361818744,0.76195897,2629.4,2628.3,5.67772]
[1645361818999,0.76195897,2629.4,2628.8,0.00240837]
[1645361819599,1.17610474,2629.1,2628.8,0.00240837]
[1645361819802,0.76195897,2629.0,2628.8,0.00240837]
[1645361819997,0.76195897,2629.0,2628.3,0.95182]
[1645361820199,0.76195897,2629.0,2628.8,0.00240837]
[1645361821198,0.76195897,2629.0,2628.2,0.8929135]
[1645361821398,0.76195897,2629.0,2628.8,0.00240839]
[1645361822198,0.76195897,2629.0,2628.4,0.00963501]
[1645361822399,0.76195897,2629.0,2628.2,0.89564298]
[1645361822636,0.76195897,2629.0,2628.8,0.00240839]
[1645361823444,0.76195897,2629.0,2628.4,0.00963501]
[1645361823445,0.76195897,2629.0,2628.2,0.89564298]
[1645361823638,0.32819997,2629.4,2628.4,0.95181]
[1645361823839,0.76189672,2629.3,2628.8,0.00240839]
[1645361824639,0.76189672,2629.3,2628.4,0.3]
[1645361824841,0.76189672,2629.3,2628.7,0.23056214]
[1645361825039,0.76189672,2629.3,2628.8,0.95405837]
[1645361825839,0.76189672,2629.3,2628.8,0.95165]
[1645361826240,0.76189672,2629.3,2628.8,0.95405837]
[1645361826697,0.71879392,2629.8,2628.9,0.3]
[1645361826698,0.00271146,2629.8,2628.9,0.3]
[1645361826894,0.00271146,2629.8,2628.9,2.20305]
[1645361827092,0.99155458,2629.7,2628.9,2.20305]
[1645361827292,0.76177851,2629.6,2629.0,0.3]
[1645361827692,0.76177851,2629.6,2629.0,1.3]
[1645361827894,0.76177851,2629.6,2629.0,1.6]
[1645361828496,0.76177851,2629.5,2629.2,0.95139]
[1645361828700,0.00271165,2629.8,2629.2,0.03705758]
[1645361828900,0.00271165,2629.8,2629.2,0.33705758]
[1645361829098,0.00271165,2629.8,2629.2,0.03705758]
[1645361829303,0.00271165,2629.8,2629.7,0.8929135]
[1645361829504,1.95568246,2630.6,2629.4,1.90269]
[1645361829702,7.51,2630.8,2629.7,0.95122]
[1645361829703,1.46145203,2630.5,2629.7,0.95122]
[1645361829900,0.0027118,2629.8,2629.7,0.95122]
[1645361830171,0.0027118,2629.8,2629.7,1.55122]
[1645361830557,0.0027118,2629.8,2629.7,2.48283123]
[1645361830757,0.74536957,2630.5,2629.7,2.48283123]
[1645361830959,0.00271194,2629.9,2629.7,2.48283123]
[1645361831857,0.74536957,2630.1,2629.7,2.48283123]
[1645361832056,0.74536957,2630.0,2629.7,2.48283123]
[1645361832257,0.7480815,2629.9,2629.7,2.48283123]
[1645361832456,0.00271193,2629.9,2629.7,2.48283123]
[1645361833058,0.74531059,2630.4,2629.7,2.48283123]
[1645361833358,0.00271193,2629.9,2629.8,1.90238]
[1645361833561,0.00271193,2629.9,2629.8,3.20238]
[1645361833763,0.00271193,2629.9,2629.8,2.20238]
[1645361834001,0.00271193,2629.9,2629.8,0.3]
[1645361834199,0.74802252,2629.9,2629.8,0.3]
[1645361834397,0.71608246,2630.5,2629.7,3.48279123]
[1645361834398,1.93539626,2630.4,2629.7,3.48279123]
[1645361834593,0.00271191,2630.0,2629.7,2.55118]
[1645361834794,0.00271191,2630.0,2629.7,0.95118]
[1645361835195,0.00271191,2630.0,2629.5,0.3]
[1645361835591,0.74531059,2630.1,2629.5,0.3]
[1645361835792,1.93727567,2630.0,2629.5,0.3]
[1645361835993,0.74531059,2629.9,2629.4,1.90269]
[1645361836598,4.24531059,2629.9,2629.2,1.90285]
[1645361836799,0.74531059,2629.8,2629.1,0.5]
[1645361836995,0.9599856,2629.2,2628.8,0.00240837]
[1645361837496,0.74531059,2629.1,2628.8,0.00240837]
[1645361837941,0.74531059,2629.1,2628.2,3.1368502]
[1645361838143,0.74531059,2629.1,2628.8,0.00240837]
[1645361838842,0.74531059,2629.0,2628.8,0.00240837]
[1645361839048,0.19,2629.5,2628.7,1.90322]
[1645361839250,0.7445111,2629.4,2628.7,1.90322]
[1645361839446,1.46059356,2629.7,2628.8,0.00240837]
[1645361839651,0.7445111,2629.6,2628.8,0.00240837]
[1645361839858,0.7445111,2629.5,2628.8,0.93419262]
[1645361840150,0.7445111,2629.5,2628.8,2.48570102]
[1645361840346,0.7445111,2629.5,2628.8,2.48329265]
[1645361840552,0.7445111,2629.5,2628.8,2.48570102]
[1645361840746,0.7445111,2629.5,2628.8,3.43730102]
[1645361841147,0.7445111,2629.5,2628.8,2.48579262]
[1645361841397,0.7445111,2629.4,2628.8,2.48579262]
[1645361841595,0.7445111,2629.3,2628.8,2.48338425]
[1645361841800,0.00103989,2629.1,2628.8,3.43729262]
[1645361842002,1.32580848,2629.8,2628.8,12.34011742]
[1645361842197,0.74351195,2629.7,2629.2,0.19169139]
[1645361842396,0.74351195,2629.7,2629.2,0.95144]
[1645361843196,0.74351195,2629.7,2629.2,1.25144]
[1645361843398,0.74351195,2629.7,2629.3,0.3]
[1645361843998,1.14137006,2630.5,2629.3,0.3]
[1645361843999,0.71608246,2630.5,2629.7,0.95117]
[1645361844199,3.49698246,2630.6,2629.7,1.55117]
[1645361844402,0.0027118,2629.8,2629.7,1.65237907]
[1645361844799,0.0027118,2629.8,2629.7,0.6]
[1645361845240,0.0027118,2629.8,2629.6,2.15513]
[1645361845241,0.71608246,2630.4,2629.6,1.90233]
[1645361845443,0.00271194,2629.9,2629.6,1.90233]
[1645361845839,0.89407099,2629.8,2629.5,1.90258]
[1645361846442,0.89407099,2629.8,2629.1,0.95157]
[1645361846642,0.89678291,2629.8,2629.1,0.95157]
[1645361847144,0.00101898,2629.7,2629.2,0.3]
[1645361847341,0.00101898,2629.7,2629.2,0.6]
[1645361848541,3.50101898,2629.7,2629.1,0.95157]
[1645361848744,0.71608246,2629.6,2628.7,0.95169]
[1645361849005,3.5,2629.5,2628.8,0.00240837]
[1645361850097,0.98619356,2629.2,2628.8,0.00240837]
[1645361850698,0.71608246,2629.6,2628.8,0.00240837]
[1645361851098,0.71608246,2629.6,2628.7,0.95169]
[1645361851300,0.71608246,2629.6,2628.8,0.00240837]
[1645361852502,0.95953293,2629.4,2628.8,0.00214345]
[1645361853542,0.95953293,2629.4,2628.7,0.95169]
[1645361853745,0.95953293,2629.4,2628.8,0.00214345]
[1645361853944,4.40710144,2629.7,2628.9,1.90307]
[1645361854145,0.00101898,2629.7,2628.9,2.8545434]
[1645361855443,0.00101898,2629.7,2628.9,3.8059834]
[1645361856688,0.00101898,2629.7,2628.9,2.8545434]
[1645361857087,0.00102897,2629.3,2628.9,2.8545434]
[1645361860544,0.00102897,2629.3,2629.0,0.3]
[1645361862345,0.71866404,2629.8,2629.0,1.25153]
[1645361862542,0.71866404,2629.8,2629.0,4.75153]
[1645361862745,0.00258158,2629.8,2629.0,4.75153]
[1645361862945,0.00258158,2629.8,2629.1,0.95141]
[1645361863149,0.71719924,2629.9,2629.1,0.95141]
[1645361863345,0.00257847,2629.8,2629.1,0.95141]
[1645361863995,0.00257847,2629.8,2629.2,0.88370223]
[1645361864405,1.43172317,2629.9,2629.2,0.88370223]
[1645361864596,0.71710247,2629.8,2629.2,0.88370223]
[1645361864995,0.71710247,2629.8,2629.0,1.25153]
[1645361864996,1.12976239,2629.7,2629.0,1.25153]
[1645361865194,1.43318493,2629.8,2629.1,0.88385814]
[1645361865195,1.09086342,2629.3,2629.1,0.88385814]
[1645361865400,0.71452393,2629.2,2628.8,0.001964]
[1645361865701,0.71452393,2629.2,2628.7,0.88393855]
[1645361865895,0.71452393,2629.2,2628.8,0.001964]
[1645361866696,0.71452393,2629.2,2628.7,0.88393855]
[1645361867098,0.71452393,2629.2,2628.8,0.00196647]
[1645361867943,0.71452393,2629.2,2628.7,0.88393855]
[1645361868144,0.71452393,2629.2,2628.8,0.00196647]
[1645361868746,0.71452393,2629.2,2628.8,0.00019426]
[1645361869142,0.71452393,2629.2,2628.7,0.88393855]
[1645361870054,0.71452393,2629.2,2628.8,0.95164]
[1645361871050,0.71452393,2629.1,2628.9,0.88426315]
[1645361871249,0.71452393,2629.0,2628.9,1.18426315]
[1645361871501,0.00109619,2629.8,2628.9,12.78426315]
[1645361871502,0.71717865,2629.8,2628.9,12.78426315]
[1645361871702,0.71564398,2629.8,2629.0,4.68426315]
[1645361871901,0.00258059,2629.3,2629.1,0.88426315]
[1645361872105,0.0010604,2629.2,2629.1,0.9671324]
[1645361875243,0.0010604,2629.2,2629.1,1.2671324]
[1645361879292,0.0010604,2629.2,2629.1,4.7671324]
[1645361879493,0.0010604,2629.2,2629.1,1.2671324]
[1645361881089,0.0010604,2629.2,2629.1,0.88426315]
[1645361882188,0.0010604,2629.2,2629.1,1.75307072]
[1645361882389,0.71533365,2629.2,2629.1,2.05307072]
[1645361882637,0.0010604,2629.2,2629.1,2.05307072]
[1645361884439,0.0010604,2629.2,2629.1,1.75307072]
[1645361884739,0.0010604,2629.2,2629.1,2.05307072]
[1645361884939,0.71427325,2629.3,2629.1,2.05307072]
[1645361885140,0.7168529,2629.3,2629.1,2.05307072]
[1645361885338,0.00257965,2629.3,2629.2,0.88426315]
[1645361885943,0.71292826,2629.8,2629.2,0.88426315]
[1645361886390,0.00257965,2629.4,2629.2,0.88426315]
[1645361887191,0.71292826,2629.6,2629.2,0.88426315]
[1645361887389,0.00257964,2629.4,2629.2,0.88426315]
[1645361887591,0.00257964,2629.4,2629.2,13.48426315]
[1645361887794,0.71292826,2629.8,2629.3,4.38426315]
[1645361888093,0.71292826,2629.7,2629.4,1.18426315]
[1645361888294,0.71292826,2629.6,2629.5,0.88426315]
[1645361888692,0.71292826,2630.0,2629.5,0.88426315]
[1645361888892,0.71292826,2629.6,2629.5,0.88426315]
[1645361889093,0.71292826,2630.0,2629.5,1.13962759]
[1645361889296,0.71292826,2630.0,2629.6,0.88495775]
[1645361889494,0.17246001,2629.4,2629.3,3.5]
[1645361889794,0.71292826,2629.4,2629.3,1.76951629]
[1645361889993,0.71608246,2630.1,2629.3,5.26951629]
[1645361890238,0.69365852,2630.0,2629.4,0.90070872]
[1645361890938,0.00199106,2629.8,2629.4,0.90070872]
[1645361891142,0.00199106,2629.8,2629.4,1.20070872]
[1645361891340,0.00199106,2629.8,2629.5,0.90070872]
[1645361891738,0.00199106,2629.8,2629.5,1.85204872]
[1645361891943,0.69365852,2630.0,2629.6,0.90070872]
[1645361892239,0.00271197,2629.8,2629.6,2.80329872]
[1645361892439,0.00271197,2629.8,2629.6,1.90259]
[1645361893241,0.69365852,2629.8,2629.6,1.90259]
[1645361893439,0.69365852,2629.7,2629.6,1.90259]
[1645361893639,0.00271196,2629.8,2629.6,1.90259]
[1645361893640,0.00271196,2629.8,2629.6,2.80617059]
[1645361893893,0.00271196,2629.8,2629.6,1.90259]
[1645361894295,0.00127441,2630.0,2629.6,1.90259]
[1645361894897,0.00271196,2629.8,2629.6,14.7538]
[1645361895096,0.00271196,2629.8,2629.7,0.90352315]
[1645361895295,0.00271196,2629.8,2629.7,1.90352315]
[1645361895495,0.69365852,2629.9,2629.7,1.90352315]
[1645361895694,0.00127441,2630.0,2629.8,0.90352315]
[1645361895896,0.00271194,2629.9,2629.8,0.90352315]
[1645361896706,0.00127441,2630.0,2629.8,0.90352315]
[1645361897499,0.69289142,2630.4,2629.9,0.95121]
[1645361898144,0.69289142,2630.4,2630.0,2.80544742]
[1645361898348,0.69289142,2630.3,2630.0,1.9021348]
[1645361898543,0.69289142,2630.2,2630.0,1.9021348]
[1645361898743,0.69289142,2630.1,2630.0,1.9021348]
[1645361898948,0.69289142,2630.1,2630.0,2.80479563]
[1645361899143,0.00125125,2630.5,2630.0,6.30479563]
[1645361899343,0.00271186,2630.2,2630.0,1.9021348]
[1645361899942,0.69560328,2630.2,2630.0,1.9021348]
[1645361900244,0.69289142,2630.1,2630.0,1.9021348]
[1645361900446,0.69289142,2630.1,2630.0,2.80479144]
[1645361900644,0.00271185,2630.2,2629.9,0.95121]
[1645361901042,0.00271185,2630.2,2630.0,0.90206009]
[1645361901244,0.69560327,2630.2,2630.0,0.90206009]
[1645361901493,0.00125125,2630.5,2630.0,0.90206009]
[1645361901792,0.00125125,2630.5,2629.9,0.95121]
[1645361901793,0.00271185,2630.2,2629.9,0.95121]
[1645361902302,0.00408145,2630.2,2630.0,0.90138851]
[1645361902791,0.0013696,2630.2,2629.9,0.95121]
[1645361902993,0.00408145,2630.2,2629.9,0.95121]
[1645361903993,0.0013696,2630.2,2629.9,0.95121]
[1645361904192,0.00408146,2630.2,2629.9,0.95121]
[1645361905241,0.00408146,2630.2,2629.6,20.15589]
[1645361905242,0.0013696,2630.2,2629.6,6.88759]
[1645361905443,0.00408146,2630.2,2629.6,6.18529]
[1645361905640,0.00408146,2630.2,2629.7,0.9010479]
[1645361906241,0.00408146,2630.2,2629.7,1.8523279]
[1645361906445,0.0013696,2630.2,2629.8,0.90101723]
[1645361906646,0.00271189,2630.1,2629.7,0.95128]
[1645361907645,0.0013696,2630.2,2629.7,0.95128]
[1645361907847,0.0027119,2630.0,2629.7,0.95128]
[1645361908445,0.69532374,2630.0,2629.7,0.95128]
[1645361908646,0.0027119,2630.0,2629.7,0.6303118]
[1645361908890,0.0013696,2630.2,2629.7,0.6303118]
[1645361909097,0.00271191,2630.0,2629.9,11.6]
[1645361909295,0.69451166,2630.2,2630.0,11.6]
[1645361909499,0.0013696,2630.2,2630.0,11.6]
[1645361909699,0.01084549,2630.5,2630.0,12.2831]
[1645361909700,0.6942112,2630.4,2630.0,12.2831]
[1645361909894,0.6942112,2630.4,2630.0,14.18522]
[1645361910295,0.6942112,2630.3,2630.0,0.86154121]
[1645361910496,0.6942112,2630.2,2630.0,0.86154121]
[1645361910795,0.71608246,2630.8,2630.0,0.17844121]
[1645361910995,0.66436314,2630.7,2630.0,0.17844121]
[1645361911194,0.66436314,2630.6,2630.0,0.17844121]
[1645361911394,0.6670749,2630.5,2630.0,0.17844121]
[1645361911594,0.66436314,2630.4,2630.0,0.17844121]
[1645361911796,0.66436314,2630.3,2630.0,0.17844121]
[1645361911997,0.66436314,2630.2,2629.8,1.0]
[1645361912198,0.91929662,2630.5,2629.7,10.15317]
[1645361912199,0.66436314,2630.1,2629.7,10.15317]
[1645361912395,0.66436314,2630.0,2629.7,10.15317]
[1645361912646,0.00271187,2630.1,2629.7,10.15317]
[1645361913644,0.66497066,2630.4,2629.7,10.15317]
[1645361913844,0.86096328,2630.1,2629.7,10.15317]
[1645361914045,0.66497066,2630.0,2629.7,3.15317]
[1645361914252,0.66497066,2630.0,2629.7,0.3]
[1645361914647,0.66497066,2630.0,2629.4,1.18572342]
[1645361914852,0.66497066,2630.0,2629.2,2.09289]
[1645361914853,4.88105312,2630.0,2629.2,1.90289]
[1645361915049,0.71608246,2629.8,2628.9,0.95166]
[1645361915252,5.29733253,2629.7,2629.4,0.00242342]
[1645361915449,0.66497066,2629.6,2629.4,0.00242342]
[1645361916049,0.66497066,2629.6,2629.0,0.87004616]
[1645361916248,0.66497066,2629.6,2629.4,0.00242342]
[1645361917295,0.66497066,2629.6,2629.0,0.87004616]
[1645361917495,0.66497066,2629.6,2629.4,0.00242342]
[1645361917899,0.71608246,2629.5,2629.4,0.00242342]
[1645361918096,0.66497066,2629.6,2629.4,0.00242342]
[1645361918300,0.66497066,2629.6,2628.8,0.9544102]
[1645361918301,3.5,2629.5,2628.8,0.9544102]
[1645361918506,5.71196201,2628.9,2627.7,0.72209241]
[1645361918706,5.0,2628.7,2628.1,0.03636911]
[1645361918903,0.85517066,2628.6,2628.1,0.03636911]
[1645361919101,0.66497066,2628.5,2628.1,0.03636911]
[1645361919299,1.75375819,2628.4,2628.1,0.03636911]
[1645361919500,1.75375819,2628.4,2627.6,0.86880757]
[1645361919501,0.66497066,2628.3,2627.6,0.86880757]
[1645361919699,0.66497066,2628.3,2627.7,0.95207]
[1645361919899,0.1902,2628.7,2628.2,0.00241853]
[1645361920172,0.72281403,2628.6,2628.2,0.00241853]
[1645361920353,0.1902,2628.5,2628.2,0.00241853]
[1645361920556,0.72281403,2628.4,2628.2,0.00241853]
[1645361920753,0.72281403,2628.4,2627.7,0.95207]
[1645361920957,2.02966201,2629.0,2628.2,0.00241848]
[1645361921162,2.02966201,2629.0,2627.7,4.45044653]
[1645361921163,0.72262234,2628.9,2627.7,4.45044653]
[1645361921755,1.04199181,2628.8,2627.7,4.45044653]
[1645361921956,1.04199181,2628.8,2627.7,0.95044653]
[1645361922160,0.72262234,2628.7,2627.7,0.95044653]
[1645361923464,0.0027095,2628.3,2627.7,0.00229804]
[1645361923760,0.72533184,2628.3,2627.7,0.00229804]
[1645361924015,0.0027095,2628.3,2627.7,1.25440804]
[1645361924419,0.72101877,2628.6,2627.7,1.25211]
[1645361924618,0.00270955,2628.1,2627.7,4.75440804]
[1645361924817,0.00270955,2628.1,2627.7,1.25440804]
[1645361925510,0.72115046,2628.6,2627.7,1.25211]
[1645361925712,0.72115046,2628.6,2627.7,4.75211]
[1645361925910,0.00270958,2628.0,2627.7,1.25440804]
[1645361926609,0.00270958,2628.0,2627.7,2.25440804]
[1645361926809,0.72115046,2628.8,2627.7,1.25211]
[1645361927012,0.00270959,2628.0,2627.7,0.95440804]
[1645361927412,0.00270959,2628.0,2627.7,0.00229804]
[1645361928049,0.00119375,2628.3,2627.6,0.86880757]
[1645361928251,0.00247779,2628.0,2627.7,0.00229804]
[1645361928450,0.00247779,2628.0,2627.7,0.30229804]
[1645361929051,1.1887047,2628.8,2627.7,0.30229804]
[1645361929253,0.1902,2629.1,2627.8,0.95184]
[1645361929453,0.1902,2629.1,2627.7,4.15569]
[1645361929454,0.1902,2629.1,2628.0,1.90375]
[1645361929653,0.1902,2629.1,2627.7,0.00229804]
[1645361929954,0.90216201,2629.1,2627.7,0.00229804]
[1645361930151,0.1902,2629.0,2627.7,0.00229804]
[1645361930356,1.07135242,2628.3,2627.3,3.5]
[1645361930555,5.0,2628.5,2627.2,0.95226]
[1645361930760,0.1902,2628.4,2627.0,3.5]
[1645361931602,0.9574304,2627.6,2626.9,0.9524]
[1645361931803,0.9574304,2627.6,2627.1,0.00276601]
[1645361932701,0.9574304,2627.6,2626.9,0.9524]
[1645361932901,0.00118317,2628.0,2626.9,0.9524]
[1645361934003,0.87657534,2627.7,2626.9,0.9524]
[1645361934408,0.87657534,2627.7,2626.9,0.96553922]
[1645361935005,0.90672622,2627.3,2626.9,0.96553922]
[1645361935251,0.90672622,2627.3,2626.9,0.9524]
[1645361935450,0.90672622,2627.3,2627.2,0.0022994]
[1645361936252,0.90672622,2627.3,2627.2,9.94e-05]
[1645361936457,0.90672622,2627.3,2626.2,3.5]
[1645361936458,5.90672622,2627.3,2626.2,3.5]
[1645361936654,0.1902,2627.2,2627.1,0.00229945]
[1645361937250,16.5,2627.1,2626.7,0.04369606]
[1645361937451,5.0,2627.1,2626.7,0.04369606]
[1645361937651,0.1902,2627.0,2626.3,0.04149492]
[1645361938053,5.0,2627.0,2626.2,0.04206334]
[1645361938251,0.90672622,2627.3,2626.2,0.04206334]
[1645361938252,0.1902,2626.9,2626.2,0.04206334]
[1645361938457,0.93794838,2626.7,2626.2,0.04206334]
[1645361939500,0.1902,2627.2,2626.2,0.04206334]
[1645361940096,0.1902,2627.2,2626.3,0.95271]
[1645361940299,0.1902,2627.2,2626.6,0.00228868]
[1645361940498,0.86328565,2626.7,2626.6,0.00228868]
[1645361941300,0.86328565,2626.7,2626.4,0.04092649]
[1645361941597,0.86328565,2626.7,2626.5,0.00228872]
[1645361941997,0.86429607,2626.7,2626.5,0.00228872]
[1645361942398,0.86429607,2626.7,2626.2,0.04206334]
[1645361942854,1.05784668,2626.3,2626.2,0.04206334]
[1645361943955,0.00101042,2626.7,2626.2,0.04206334]
[1645361944458,5.00101042,2626.7,2626.2,0.04206334]
[1645361945158,5.00101042,2626.7,2626.3,0.0022889]
[1645361945359,1.08834547,2626.6,2626.3,0.0022889]
[1645361945557,1.08834547,2626.6,2626.4,0.04092649]
[1645361946415,1.08834547,2626.6,2626.4,0.04321534]
[1645361946613,1.08834547,2626.6,2626.4,0.00228885]
[1645361946807,1.08834547,2626.6,2626.5,0.04035807]
[1645361947608,1.08834547,2626.6,2626.4,0.00228881]
[1645361948009,1.08834547,2626.6,2626.5,0.04035807]
[1645361948915,1.08834547,2626.6,2626.4,0.00228881]
[1645361949111,1.08834547,2626.6,2626.5,0.04035807]
[1645361950013,0.03801238,2626.4,2626.2,0.04206334]
[1645361950254,11.5,2626.1,2626.0,0.04349389]
[1645361950461,5.0,2626.3,2624.7,10.5656]
[1645361950462,1.22664435,2625.1,2624.7,10.5656]
[1645361950654,1.22664435,2625.1,2624.7,3.91]
[1645361950953,1.22664435,2625.1,2624.4,2.90169635]
[1645361951155,1.06178129,2625.0,2624.7,0.5]
[1645361951358,1.06178129,2625.0,2624.2,0.85270392]
[1645361951563,1.06178129,2625.0,2624.3,0.1904]
[1645361952171,1.06178129,2625.0,2624.3,1.4904]
[1645361952358,1.06178129,2625.0,2624.3,1.7904]
[1645361952557,1.06178129,2625.0,2624.3,0.3]
[1645361952756,1.06178129,2625.0,2624.2,0.3]
[1645361952957,1.06178129,2625.0,2624.1,1.80270856]
[1645361953156,4.56178129,2625.0,2624.1,0.6]
[1645361953358,1.03253419,2624.6,2624.0,2.28766]
[1645361953559,1.03253419,2624.6,2624.5,0.00203283]
[1645361954410,1.03253419,2624.6,2624.0,0.95326]
[1645361954612,1.22664435,2625.1,2624.0,0.95326]
[1645361954815,1.22664435,2625.1,2624.4,0.00203287]
[1645361955014,1.22664435,2625.1,2624.5,0.95309]
[1645361955205,1.22664435,2625.1,2624.6,0.3]
[1645361955410,1.22664435,2625.1,2624.5,0.95309]
[1645361955810,4.2912,2625.7,2624.6,0.3]
[1645361956010,4.2912,2625.7,2624.8,1.90586]
[1645361956011,1.2211,2625.7,2624.8,1.90586]
[1645361956207,3.4959,2625.8,2624.8,2.20586]
[1645361956409,0.1904,2625.9,2624.8,2.20586]
[1645361956608,0.1904,2625.9,2624.8,1.90586]
[1645361956812,1.08051917,2625.5,2624.8,1.90586]
[1645361957007,1.08051917,2625.5,2625.2,0.00172319]
[1645361958148,1.08051917,2625.5,2624.8,1.90586]
[1645361958352,1.08051917,2625.5,2625.2,0.00172319]
[1645361959248,1.08051917,2625.5,2624.8,1.93860551]
[1645361959249,1.08051917,2625.5,2624.8,1.90586]
[1645361959452,1.08051917,2625.5,2625.2,0.00178765]
[1645361959651,3.6904,2626.0,2625.2,0.00178765]
[1645361960352,3.6904,2626.0,2624.8,1.93983042]
[1645361960552,3.6904,2626.0,2624.8,1.90586]
[1645361960753,3.6904,2626.0,2625.5,0.00178748]
[1645361960754,0.8379565,2625.6,2625.5,0.00178748]
[1645361961411,0.1904,2626.0,2625.5,0.00178748]
[1645361961617,1.1583,2626.1,2625.3,0.95296]
[1645361961809,3.5,2626.0,2625.3,0.95296]
[1645361962012,0.03801238,2626.4,2625.3,0.95296]
[1645361962208,0.93092882,2626.3,2625.3,0.95296]
[1645361962411,0.1904,2626.3,2625.3,0.95296]
[1645361962609,7.455e-05,2625.5,2625.3,0.95296]
[1645361963011,7.455e-05,2625.5,2625.2,1.91590781]
[1645361963211,7.455e-05,2625.5,2625.2,0.01016781]
[1645361964009,7.455e-05,2625.5,2624.9,1.2467]
[1645361964209,7.455e-05,2625.5,2625.2,0.00177314]
[1645361965161,7.455e-05,2625.5,2624.9,1.2467]
[1645361965551,7.455e-05,2625.5,2625.2,0.00177314]
[1645361965753,1.13211134,2625.4,2625.2,0.00177314]
[1645361966356,7.455e-05,2625.5,2625.2,0.00177314]
[1645361966559,7.455e-05,2625.5,2625.2,0.95301]
[1645361966754,7.455e-05,2625.5,2625.2,0.95478644]
[1645361967356,7.455e-05,2625.5,2625.2,0.00177644]
[1645361967556,7.455e-05,2625.5,2625.1,1.90591]
[1645361967756,0.00101827,2625.5,2625.1,1.90591]
[1645361968058,0.00101827,2625.5,2625.2,0.00177641]
[1645361968898,0.00101827,2625.5,2625.1,1.90591]
[1645361969304,0.14402215,2626.3,2625.2,0.00177641]
[1645361969506,0.74050789,2626.2,2625.2,0.00177641]
[1645361969709,0.1904,2626.1,2625.2,0.00177641]
[1645361969902,0.74050789,2626.0,2625.2,0.00177641]
[1645361970100,0.74050789,2626.0,2625.1,1.90591]
[1645361970302,0.74050789,2625.9,2625.1,1.90591]
[1645361970505,1.15343792,2625.8,2625.1,0.17906933]
[1645361971503,1.15343792,2625.8,2624.8,1.90611]
[1645361972505,1.02870093,2625.4,2624.8,1.90611]
[1645361973959,1.02870093,2625.4,2625.0,0.00218208]
[1645361974563,0.00101827,2625.5,2625.1,0.95305]
[1645361975161,0.00101827,2625.5,2625.1,0.955232]
[1645361975561,0.8867567,2625.4,2625.1,0.955232]
[1645361975762,0.8867567,2625.4,2625.1,0.905232]
[1645361975962,0.8867567,2625.4,2625.1,0.90305]
[1645361976165,0.00101827,2625.5,2625.1,0.90305]
[1645361976400,0.00101827,2625.5,2625.1,0.90523196]
[1645361977204,0.85320244,2625.4,2624.8,1.90611]
[1645361977406,0.00101827,2625.5,2624.8,1.90611]
[1645361977607,0.00101827,2625.5,2625.2,0.00218192]
[1645361978504,0.00101827,2625.5,2625.2,0.95295]
[1645361978505,1.0,2625.3,2625.2,0.95295]
[1645361978708,1.0,2625.3,2625.2,0.95513188]
[1645361979404,1.0,2625.3,2625.2,4.45513188]
[1645361979604,1.0,2625.3,2625.2,0.95295]
[1645361982962,0.56826948,2626.2,2625.3,18.6009]
[1645361983161,0.71668077,2626.1,2625.5,1.90543]
[1645361983359,0.71668077,2626.1,2625.6,0.00272049]
[1645361984403,1.0,2625.7,2625.6,0.00272049]
[1645361984608,1.0,2625.7,2625.6,0.95271]
[1645361985005,1.0,2625.7,2625.5,2.858106]
[1645361985307,1.0,2625.6,2625.5,2.858106]
[1645361985707,0.56554613,2626.2,2625.5,2.858106]
[1645361985907,0.71748489,2626.1,2625.6,0.00272018]
[1645361986310,1.0,2625.7,2625.6,0.00272018]
[1645361986507,1.71748489,2625.7,2625.5,2.858106]
[1645361986707,1.0,2625.7,2625.5,2.858106]
[1645361986908,0.56826971,2626.2,2625.5,2.858106]
[1645361986909,1.0,2625.6,2625.5,2.858106]
[1645361987108,1.0,2625.6,2625.5,2.86028767]
[1645361987510,0.9,2625.6,2625.5,2.86028767]
[1645361987957,0.00086657,2626.1,2625.5,2.86028767]
[1645361988153,0.00086657,2626.1,2625.6,0.00270658]
[1645361988751,1.0,2625.7,2625.6,0.00270658]
[1645361989051,0.00086657,2626.1,2625.5,14.810736]